fUST/lending_fUST_20250204
["ID","MTS","AMOUNT","RATE_DAILY","PERIOD"]
[351632555,1738678235171,-243.301428,0.00016438,2]
[351632556,1738678235182,-243.301428,0.00016438,2]
[351632557,1738678235192,-212.5605571,0.00016438,2]
[351632558,1738678235202,-500.0,0.00016438,2]
[351632559,1738678235211,-500.0,0.00016438,2]
[351632560,1738678235223,-500.0,0.00016438,2]
[351632561,1738678235233,-500.0,0.00016438,2]
[351632562,1738678235243,-500.0,0.00016438,2]
[351632563,1738678235252,-500.0,0.00016438,2]
[351632564,1738678235262,-500.0,0.00016438,2]
[351632565,1738678235273,-500.0,0.00016438,2]
[351632566,1738678235283,-500.0,0.00016438,2]
[351632567,1738678235293,-503.46361273,0.00016438,2]
[351632568,1738678235304,-151.0,0.00016438,2]
[351632569,1738678235315,-151.0,0.00016438,2]
[351632570,1738678235324,-151.0,0.00016438,2]
[351632571,1738678235334,-151.0,0.00016438,2]
[351632572,1738678235343,-500.0,0.00016438,2]
[351632573,1738678235353,-500.0,0.00016438,2]
[351632574,1738678235363,-501.89671578,0.00016438,2]
[351632575,1738678235372,-500.0,0.00016438,2]
[351632576,1738678235381,-500.0,0.00016438,2]
[351632577,1738678235390,-500.0,0.00016438,2]
[351632578,1738678235400,-500.0,0.00016438,2]
[351632579,1738678235409,-578.011317,0.00016438,2]
[351632580,1738678235418,-171.888464,0.00016438,2]
[351632581,1738678235428,-151.0,0.00016438,2]
[351632582,1738678235439,-151.0,0.00016438,2]
[351632583,1738678235449,-151.0,0.00016438,2]
[351632584,1738678235458,-151.0,0.00016438,2]
[351632585,1738678235467,-151.0,0.00016438,2]
[351632586,1738678235477,-151.0,0.00016438,2]
[351632587,1738678235486,-151.0,0.00016438,2]
[351632588,1738678235495,-151.0,0.00016438,2]
[351632589,1738678235505,-151.0,0.00016438,2]
[351632590,1738678235515,-151.0,0.00016438,2]
[351632591,1738678235524,-287.191587,0.00016438,2]
[351632592,1738678235534,-287.191587,0.00016438,2]
[351632593,1738678235544,-287.191587,0.00016438,2]
[351632594,1738678235554,-287.191587,0.00016438,2]
[351632595,1738678235564,-287.191587,0.00016438,2]
[351632596,1738678235573,-287.191587,0.00016438,2]
[351632597,1738678235583,-287.191587,0.00016438,2]
[351632598,1738678235593,-287.191587,0.00016438,2]
[351632599,1738678235602,-287.191587,0.00016438,2]
[351632600,1738678235611,-287.191587,0.00016438,2]
[351632601,1738678235620,-287.191587,0.00016438,2]
[351632602,1738678235630,-500.0,0.00016438,2]
[351632603,1738678235639,-287.191587,0.00016438,2]
[351632604,1738678235649,-287.191587,0.00016438,2]
[351632605,1738678235659,-287.191587,0.00016438,2]
[351632606,1738678235668,-151.0,0.00016438,2]
[351632607,1738678235677,-151.0,0.00016438,2]
[351632608,1738678235690,-151.843507,0.00016438,2]
[351632609,1738678235699,-645.45,0.00016438,2]
[351632610,1738678235709,-500.0,0.00016438,2]
[351632611,1738678235719,-500.0,0.00016438,2]
[351632612,1738678235728,-176.600744,0.00016438,2]
[351632613,1738678235737,-176.600744,0.00016438,2]
[351632614,1738678235746,-176.600744,0.00016438,2]
[351632615,1738678235755,-176.600744,0.00016438,2]
[351632616,1738678235765,-176.600744,0.00016438,2]
[351632617,1738678235774,-176.600744,0.00016438,2]
[351632618,1738678235783,-176.600744,0.00016438,2]
[351632619,1738678235793,-500.0,0.00016438,2]
[351632620,1738678235802,-176.600744,0.00016438,2]
[351632621,1738678235811,-176.600744,0.00016438,2]
[351632622,1738678235821,-176.600744,0.00016438,2]
[351632623,1738678235830,-176.600744,0.00016438,2]
[351632624,1738678235840,-176.600744,0.00016438,2]
[351632625,1738678235850,-176.600744,0.00016438,2]
[351632626,1738678235859,-176.600744,0.00016438,2]
[351632627,1738678235868,-151.0,0.00016438,2]
[351632628,1738678235878,-151.0,0.00016438,2]
[351632629,1738678235887,-151.0,0.00016438,2]
[351632630,1738678235897,-151.0,0.00016438,2]
[351632631,1738678235906,-151.0,0.00016438,2]
[351632632,1738678235916,-151.0,0.00016438,2]
[351632633,1738678235925,-153.600231,0.00016438,2]
[351632634,1738678235937,-500.0,0.00016438,2]
[351632635,1738678235947,-500.0,0.00016438,2]
[351632636,1738678235956,-79.76430564,0.00016438,2]
[351632680,1738678238875,-420.23569436,0.00016438,2]
[351632682,1738678238885,-500.0,0.00016438,2]
[351632684,1738678238895,-500.0,0.00016438,2]
[351632686,1738678238904,-501.13571995,0.00016438,2]
[351632688,1738678238914,-229.614937,0.00016438,2]
[351632690,1738678238924,-229.614937,0.00016438,2]
[351632692,1738678238937,-500.0,0.00016438,2]
[351632694,1738678238949,-229.614937,0.00016438,2]
[351632696,1738678238959,-500.0,0.00016438,2]
[351632698,1738678238969,-500.0,0.00016438,2]
[351632700,1738678238979,-229.614937,0.00016438,2]
[351632702,1738678238988,-625.50886556,0.00016438,2]
[351632704,1738678238998,-229.614937,0.00016438,2]
[351632706,1738678239009,-229.614937,0.00016438,2]
[351632708,1738678239019,-229.614937,0.00016438,2]
[351632710,1738678239027,-229.614937,0.00016438,2]
[351632712,1738678239036,-229.614937,0.00016438,2]
[351632714,1738678239045,-229.614937,0.00016438,2]
[351632716,1738678239055,-229.614937,0.00016438,2]
[351632718,1738678239064,-500.0,0.00016438,2]
[351632720,1738678239073,-447.16706452,0.00016438,2]
[351632722,1738678239082,-229.614937,0.00016438,2]
[351632724,1738678239092,-229.614937,0.00016438,2]
[351632726,1738678239104,-229.614937,0.00016438,2]
[351632728,1738678239115,-229.614937,0.00016438,2]
[351632730,1738678239124,-501.50689531,0.00016438,2]
[351632732,1738678239134,-229.614937,0.00016438,2]
[351632734,1738678239143,-500.0,0.00016438,2]
[351632736,1738678239153,-500.60379772,0.00016438,2]
[351632739,1738678239163,-500.8107668,0.00016438,2]
[351632741,1738678239172,-500.97957766,0.00016438,2]
[351632743,1738678239182,-531.86419752,0.00016438,2]
[351632745,1738678239194,-500.0,0.00016438,2]
[351632747,1738678239204,-500.0,0.00016438,2]
[351632749,1738678239213,-500.0,0.00016438,2]
[351632750,1738678239227,-500.0,0.00016438,2]
[351632751,1738678239236,-500.0,0.00016438,2]
[351632752,1738678239246,-500.0,0.00016438,2]
[351632753,1738678239255,-363.72392051,0.00016438,2]
[351632754,1738678239280,-136.6791849,0.00016438,2]
[351632755,1738678239289,-500.0,0.00016438,2]
[351632756,1738678239299,-500.0,0.00016438,2]
[351632757,1738678239309,-500.0,0.00016438,2]
[351632758,1738678239318,-500.0,0.00016438,2]
[351632759,1738678239327,-500.0,0.00016438,2]
[351632760,1738678239336,-887.88,0.00016438,2]
[351632761,1738678239345,-500.0,0.00016438,2]
[351632762,1738678239354,-500.0,0.00016438,2]
[351632763,1738678239363,-500.0,0.00016438,2]
[351632764,1738678239373,-500.0,0.00016438,2]
[351632765,1738678239382,-500.0,0.00016438,2]
[351632766,1738678239391,-500.0,0.00016438,2]
[351632767,1738678239401,-500.0,0.00016438,2]
[351632768,1738678239410,-181.67192304,0.00016438,2]
[351632769,1738678239420,-160.2245543,0.00016438,2]
[351632943,1738678241032,-339.7754457,0.00016438,2]
[351632945,1738678241042,-500.0,0.00016438,2]
[351632947,1738678241052,-500.0,0.00016438,2]
[351632949,1738678241062,-500.0,0.00016438,2]
[351632951,1738678241072,-500.0,0.00016438,2]
[351632953,1738678241082,-511.69677175,0.00016438,2]
[351632955,1738678241092,-506.77,0.00016438,2]
[351632958,1738678241102,-500.0,0.00016438,2]
[351632960,1738678241112,-500.0,0.00016438,2]
[351632962,1738678241121,-461.75778255,0.00016438,2]
[351633224,1738678243821,-44.81791568,0.00016438,2]
[351633226,1738678243831,-1423.73,0.00016438,2]
[351633228,1738678243841,-1514.8,0.00016438,2]
[351633230,1738678243850,-500.0,0.00016438,2]
[351633232,1738678243859,-212.51703915,0.00016438,2]
[351633234,1738678243870,-500.0,0.00016438,2]
[351633236,1738678243879,-500.0,0.00016438,2]
[351633238,1738678243889,-500.0,0.00016438,2]
[351633240,1738678243898,-500.0,0.00016438,2]
[351633242,1738678243908,-500.0,0.00016438,2]
[351633244,1738678243918,-855.45,0.00016438,2]
[351633246,1738678243927,-500.0,0.00016438,2]
[351633249,1738678243938,-500.0,0.00016438,2]
[351633250,1738678243947,-500.0,0.00016438,2]
[351633252,1738678243956,-219.22379558,0.00016438,2]
[351633256,1738678243969,-280.77620442,0.00016438,2]
[351633259,1738678243978,-243.74779558,0.00016438,2]
[351633489,1738678246912,-153.0,0.00016392,2]
[351633491,1738678246922,-153.0,0.00016392,2]
[351633493,1738678246932,-153.0,0.00016392,2]
[351633495,1738678246944,-256.25220442,0.00016438,2]
[351633497,1738678246954,-513.55,0.00016438,2]
[351633499,1738678246964,-500.0,0.00016438,2]
[351633501,1738678246973,-500.0,0.00016438,2]
[351633503,1738678246983,-500.0,0.00016438,2]
[351633505,1738678246993,-393.56266816,0.00016438,2]
[351633507,1738678247002,-500.0,0.00016438,2]
[351633509,1738678247012,-1068.7155527,0.00016438,2]
[351633516,1738678247068,197.880742,0.00013973,2]
[351634876,1738678275779,500.0,0.00014164,2]
[351634877,1738678524283,471.923856,0.00015393,14]
[351634878,1738678524679,471.923856,0.00015393,20]
[351634879,1738678525004,471.923856,0.00015393,26]
[351634880,1738678525372,471.923856,0.00015393,33]
[351634881,1738678525694,471.923856,0.00015393,39]
[351634882,1738678526043,471.923856,0.00015393,45]
[351634883,1738678526361,471.923856,0.00015393,51]
[351634884,1738678527010,471.923856,0.00015393,57]
[351634885,1738678527370,471.923856,0.00015393,64]
[351634886,1738678527695,471.923856,0.00015393,70]
[351634887,1738678528038,471.923856,0.00015393,76]
[351634888,1738678529302,471.923856,0.00015393,82]
[351634889,1738678529784,471.923856,0.00015393,88]
[351634890,1738678530034,471.923856,0.00015393,95]
[351634891,1738678530391,471.923856,0.00015393,101]
[351634892,1738678530762,471.923856,0.00015393,107]
[351634893,1738678531135,471.923856,0.00015393,113]
[351634894,1738678531499,471.923856,0.00015393,120]
[351634899,1738679239966,250.0,0.00014775,2]
[351634900,1738679314221,199.220381,0.00013973,2]
[351634901,1738679317193,1000.0,0.00016,16]
[351634902,1738679321208,1459.34839462,0.00013,2]
[351634905,1738679387725,1821.036023,0.00014897,2]
[351634909,1738679429464,205.9744017,0.00014865,2]
[351634932,1738679432171,-300.0,0.00015123,2]
[351634934,1738679432181,-342.62244259,0.00015124,2]
[351634936,1738679432194,-800.37530204,0.00015124,2]
[351634938,1738679432206,-14888.97720647,0.00015124,2]
[351634940,1738679432221,-471.923856,0.00015393,2]
[351634943,1738679432231,-471.923856,0.00015393,8]
[351634945,1738679432241,-500.0,0.00015524,2]
[351634947,1738679432251,-553.30813655,0.00015524,2]
[351634949,1738679432260,-500.0,0.00015534,2]
[351634951,1738679432269,-161.802,0.0001562,2]
[351634953,1738679432279,-152.0,0.00015907,2]
[351634955,1738679432288,-1000.0,0.00016,5]
[351634956,1738679432298,-10000.0,0.00016,3]
[351634958,1738679432307,-691.49159113,0.000161,2]
[351634960,1738679432317,-750.5,0.00016115,2]
[351634963,1738679432326,-2080.56035265,0.000162,2]
[351634965,1738679432336,-10000.0,0.000162,2]
[351634967,1738679432346,-153.0,0.000162,2]
[351634969,1738679432355,-1224.86330337,0.00016218,2]
[351634970,1738679432365,-6160.13936827,0.00016238,2]
[351634973,1738679432374,-615.2395753,0.00016273,2]
[351634974,1738679432384,-13258.95722438,0.00016305,2]
[351634977,1738679432394,-1224.86330337,0.00016318,2]
[351634979,1738679432405,-3978.7697386,0.00016338,2]
[351634981,1738679432414,-2168.84500732,0.00016338,2]
[351634983,1738679432423,-153.0,0.00016353,2]
[351634985,1738679432432,-153.0,0.00016353,2]
[351634986,1738679432442,-153.0,0.00016353,2]
[351634988,1738679432451,-153.0,0.00016353,2]
[351634991,1738679432463,-153.0,0.00016353,2]
[351634993,1738679432473,-153.0,0.00016353,2]
[351634995,1738679432482,-153.0,0.00016353,2]
[351634996,1738679432492,-691.49159111,0.00016357,2]
[351634998,1738679432501,-164.664459,0.00016398,2]
[351635001,1738679432511,-151.0,0.000164,2]
[351635003,1738679432522,-151.0,0.000164,2]
[351635004,1738679432532,-151.0,0.000164,2]
[351635006,1738679432542,-151.0,0.000164,2]
[351635008,1738679432552,-151.0,0.000164,2]
[351635010,1738679432562,-151.0,0.000164,2]
[351635012,1738679432572,-151.0,0.000164,2]
[351635014,1738679432582,-151.0,0.000164,2]
[351635017,1738679432591,-151.0,0.000164,2]
[351635019,1738679432605,-151.0,0.000164,2]
[351635021,1738679432616,-151.0,0.000164,2]
[351635023,1738679432627,-231.52608759,0.00016417,2]
[351635025,1738679432641,-808.69170639,0.00016417,2]
[351635027,1738679432650,-1224.86330337,0.00016418,2]
[351635029,1738679432660,-222.04499024,0.00016436,2]
[351635031,1738679432673,-277.95500976,0.00016436,2]
[351635033,1738679432683,-243.8339876,0.00016436,2]
[351635036,1738679432693,-500.0,0.00016436,2]
[351635038,1738679432704,-348.0019089,0.00016436,2]
[351635039,1738679432717,-500.0,0.00016436,2]
[351635041,1738679432726,-500.0,0.00016436,2]
[351635043,1738679432736,-500.0,0.00016436,2]
[351635044,1738679432744,-500.0,0.00016436,2]
[351635045,1738679432755,-500.0,0.00016436,2]
[351635046,1738679432764,-161.64415291,0.00016436,2]
[351635047,1738679432774,-500.0,0.00016436,2]
[351635048,1738679432783,-500.0,0.00016436,2]
[351635049,1738679432793,-531.6132225,0.00016436,2]
[351635050,1738679432803,-215.2270344,0.00016436,2]
[351635051,1738679432813,-170.68379131,0.00016436,2]
[351635052,1738679432823,-94040.8686866,0.00016437,7]
[351635102,1738679438095,-150019.95735848,0.00016437,7]
[351635105,1738679438106,-126016.83761382,0.00016437,7]
[351635107,1738679438118,-532427.2273732,0.00016437,7]
[351635109,1738679438127,-1653.38198737,0.00016437,2]
[351635112,1738679438139,-4602.13014226,0.00016437,2]
[351635114,1738679438150,-1722.3396068,0.00016437,2]
[351635116,1738679438162,-1497.359927,0.00016437,2]
[351635702,1738679444050,-1983.631,0.00016437,2]
[351635899,1738679445940,-5108.35580784,0.00016437,2]
[351635901,1738679445952,-151.0,0.00016438,2]
[351635903,1738679445964,-151.0,0.00016438,2]
[351635905,1738679445978,-151.0,0.00016438,2]
[351635907,1738679445992,-154.890171,0.00016438,2]
[351635910,1738679446004,-151.0,0.00016438,2]
[351635912,1738679446016,-151.0,0.00016438,2]
[351635914,1738679446028,-151.0,0.00016438,2]
[351635916,1738679446039,-151.0,0.00016438,2]
[351635918,1738679446051,-151.0,0.00016438,2]
[351635921,1738679446063,-151.0,0.00016438,2]
[351635923,1738679446074,-205.053427,0.00016438,2]
[351635925,1738679446085,-151.0,0.00016438,2]
[351635927,1738679446097,-151.0,0.00016438,2]
[351635929,1738679446109,-151.0,0.00016438,2]
[351635933,1738679446121,-151.0,0.00016438,2]
[351635936,1738679446133,-151.0,0.00016438,2]
[351635939,1738679446145,-151.0,0.00016438,2]
[351635941,1738679446157,-151.0,0.00016438,2]
[351635944,1738679446169,-151.0,0.00016438,2]
[351635947,1738679446181,-151.0,0.00016438,2]
[351635949,1738679446193,-260.038834,0.00016438,2]
[351635951,1738679446204,-151.0,0.00016438,2]
[351635953,1738679446215,-151.0,0.00016438,2]
[351635955,1738679446228,-151.0,0.00016438,2]
[351635958,1738679446241,-151.0,0.00016438,2]
[351635960,1738679446252,-151.0,0.00016438,2]
[351635962,1738679446265,-151.0,0.00016438,2]
[351635964,1738679446277,-294.470462,0.00016438,2]
[351635967,1738679446288,-268.90758556,0.00016438,2]
[351635969,1738679446300,-151.0,0.00016438,2]
[351635971,1738679446310,-151.0,0.00016438,2]
[351635973,1738679446322,-151.0,0.00016438,2]
[351635976,1738679446334,-151.0,0.00016438,2]
[351635978,1738679446345,-151.0,0.00016438,2]
[351635980,1738679446356,-151.0,0.00016438,2]
[351635982,1738679446367,-151.0,0.00016438,2]
[351635984,1738679446379,-157.934835,0.00016438,2]
[351635986,1738679446390,-151.0,0.00016438,2]
[351635989,1738679446403,-151.0,0.00016438,2]
[351635991,1738679446414,-151.0,0.00016438,2]
[351635993,1738679446426,-151.0,0.00016438,2]
[351635995,1738679446438,-151.0,0.00016438,2]
[351635998,1738679446450,-151.0,0.00016438,2]
[351636000,1738679446461,-151.0,0.00016438,2]
[351636002,1738679446475,-151.0,0.00016438,2]
[351636004,1738679446486,-151.0,0.00016438,2]
[351636006,1738679446498,-151.0,0.00016438,2]
[351636009,1738679446509,-151.0,0.00016438,2]
[351636011,1738679446520,-151.0,0.00016438,2]
[351636013,1738679446531,-240.99232,0.00016438,2]
[351636015,1738679446543,-151.0,0.00016438,2]
[351636017,1738679446554,-216.459389,0.00016438,2]
[351636019,1738679446566,-151.0,0.00016438,2]
[351636022,1738679446577,-151.0,0.00016438,2]
[351636024,1738679446589,-151.0,0.00016438,2]
[351636026,1738679446600,-151.0,0.00016438,2]
[351636028,1738679446612,-151.0,0.00016438,2]
[351636030,1738679446626,-151.0,0.00016438,2]
[351636032,1738679446638,-151.0,0.00016438,2]
[351636035,1738679446650,-151.0,0.00016438,2]
[351636037,1738679446663,-151.0,0.00016438,2]
[351636039,1738679446675,-260.866282,0.00016438,2]
[351636041,1738679446686,-500.0,0.00016438,2]
[351636044,1738679446698,-58.7911666,0.00016438,2]
[351636049,1738679446741,-441.2088334,0.00016438,2]
[351636051,1738679446750,-449.9026466,0.00016438,2]
[351636548,1738679503603,500.0,0.00014164,2]
[351636549,1738679784421,500.0,0.00014164,2]
[351636550,1738679796851,1000.0,0.00018,30]
[351636551,1738679807384,1000.0,0.00018,31]
[351636552,1738679820306,750.0,0.00018,32]
[351636553,1738679862357,1300.87,0.00015012,2]
[351636555,1738679993051,500.0,0.00014164,2]
[351636560,1738680241935,189.259361,0.00013973,2]
[351636614,1738680632299,-250.0,0.00015328,2]
[351636616,1738680632308,-2632.4520126,0.00015373,2]
[351636618,1738680632318,-500.0,0.00015534,2]
[351636619,1738680632328,-160.251,0.0001562,2]
[351636621,1738680632337,-168.765789,0.00015998,2]
[351636623,1738680632349,-131.234211,0.00015998,2]
[351636625,1738680632359,-500.0,0.00015999,2]
[351636627,1738680632369,-500.0,0.00015999,2]
[351636628,1738680632380,-283.46578901,0.00015999,2]
[351636631,1738680632397,-89.09249902,0.00015999,2]
[351636633,1738680632408,-500.0,0.00015999,2]
[351636635,1738680632418,-281.29035806,0.00015999,2]
[351636637,1738680632427,-778734.0,0.00016,2]
[351636638,1738680632436,-357.33897753,0.00016138,2]
[351636639,1738680632445,-1436.4355093,0.00016273,2]
[351636640,1738680632455,-151.0,0.000163,2]
[351636641,1738680632464,-151.0,0.000163,2]
[351636642,1738680632473,-153.0,0.000163,2]
[351636643,1738680632483,-1281.556,0.00016338,2]
[351636644,1738680632492,-156.5980982,0.00016338,2]
[351636645,1738680632502,-153.0,0.00016358,2]
[351636646,1738680632511,-153.0,0.00016358,2]
[351636647,1738680632521,-153.0,0.00016358,2]
[351636648,1738680632531,-153.0,0.00016358,2]
[351636649,1738680632541,-153.0,0.00016358,2]
[351636651,1738680632551,-153.0,0.00016358,2]
[351636653,1738680632560,-153.0,0.00016358,2]
[351636655,1738680632570,-153.0,0.00016358,2]
[351636657,1738680632579,-150.0,0.00016377,2]
[351636659,1738680632588,-537.0,0.00016377,2]
[351636661,1738680632598,-1974.0,0.00016377,2]
[351636663,1738680632608,-2298.0,0.00016377,2]
[351636666,1738680632618,-396.0,0.00016377,2]
[351636668,1738680632628,-150.0,0.00016377,2]
[351636669,1738680632641,-500.000001,0.0001638,2]
[351636671,1738680632651,-153.0,0.000164,2]
[351636673,1738680632660,-153.0,0.000164,2]
[351636675,1738680632670,-151.0,0.000164,2]
[351636677,1738680632679,-151.0,0.000164,2]
[351636679,1738680632689,-13258.95722438,0.00016411,2]
[351636682,1738680632699,-164.664459,0.00016433,2]
[351636684,1738680632708,-179.8038455,0.00016437,2]
[351636686,1738680632718,-9861.21538518,0.00016437,2]
[351636688,1738680632728,-171.0,0.00016437,2]
[351636690,1738680632737,-171.0,0.00016437,2]
[351636692,1738680632746,-57647.64665427,0.00016438,2]
[351636694,1738680632755,-151.0,0.00016438,2]
[351636695,1738680632764,-151.0,0.00016438,2]
[351636697,1738680632774,-151.0,0.00016438,2]
[351636698,1738680632784,-151.0,0.00016438,2]
[351636700,1738680632794,-151.0,0.00016438,2]
[351636702,1738680632803,-193.144532,0.00016438,2]
[351636704,1738680632813,-296.677627,0.00016438,2]
[351636706,1738680632823,-296.677627,0.00016438,2]
[351636708,1738680632832,-296.677627,0.00016438,2]
[351636711,1738680632845,-296.677627,0.00016438,2]
[351636713,1738680632854,-296.677627,0.00016438,2]
[351636715,1738680632864,-296.677627,0.00016438,2]
[351636716,1738680632873,-296.677627,0.00016438,2]
[351636718,1738680632887,-296.677627,0.00016438,2]
[351636720,1738680632897,-296.677627,0.00016438,2]
[351636722,1738680632907,-296.677627,0.00016438,2]
[351636724,1738680632916,-296.677627,0.00016438,2]
[351636726,1738680632926,-296.677627,0.00016438,2]
[351636728,1738680632936,-296.677627,0.00016438,2]
[351636730,1738680632946,-296.677627,0.00016438,2]
[351636732,1738680632956,-296.677627,0.00016438,2]
[351636734,1738680632966,-296.677627,0.00016438,2]
[351636736,1738680632976,-296.677627,0.00016438,2]
[351636738,1738680632986,-296.677627,0.00016438,2]
[351636740,1738680633000,-296.677627,0.00016438,2]
[351636742,1738680633010,-296.677618,0.00016438,2]
[351636744,1738680633019,-151.0,0.00016438,2]
[351636746,1738680633030,-151.321651,0.00016438,2]
[351636748,1738680633042,-151.0,0.00016438,2]
[351636750,1738680633052,-151.0,0.00016438,2]
[351636752,1738680633062,-151.0,0.00016438,2]
[351636754,1738680633073,-151.341923,0.00016438,2]
[351636756,1738680633084,-500.0,0.00016438,2]
[351636758,1738680633094,-330.65962034,0.00016438,2]
[351636760,1738680633104,-505.77411646,0.00016438,2]
[351636762,1738680633115,-315.07254194,0.00016438,2]
[351636764,1738680633125,-160.142347,0.00016438,2]
[351636766,1738680633138,-509.66793616,0.00016438,2]
[351636768,1738680633148,-151.0,0.00016438,2]
[351636770,1738680633159,-151.0,0.00016438,2]
[351636772,1738680633169,-151.0,0.00016438,2]
[351636774,1738680633179,-151.0,0.00016438,2]
[351636776,1738680633189,-151.0,0.00016438,2]
[351636778,1738680633199,-151.0,0.00016438,2]
[351636780,1738680633209,-151.0,0.00016438,2]
[351636782,1738680633221,-151.0,0.00016438,2]
[351636784,1738680633233,-151.0,0.00016438,2]
[351636786,1738680633243,-151.0,0.00016438,2]
[351636788,1738680633253,-259.352193,0.00016438,2]
[351636790,1738680633265,-500.0,0.00016438,2]
[351636792,1738680633275,-501.32512999,0.00016438,2]
[351636794,1738680633284,-500.0,0.00016438,2]
[351636796,1738680633295,-563.229366,0.00016438,2]
[351636798,1738680633304,-563.229366,0.00016438,2]
[351636800,1738680633314,-563.229366,0.00016438,2]
[351636802,1738680633324,-563.229366,0.00016438,2]
[351636804,1738680633334,-563.229366,0.00016438,2]
[351636806,1738680633344,-563.229366,0.00016438,2]
[351636808,1738680633355,-563.229366,0.00016438,2]
[351636810,1738680633366,-563.229366,0.00016438,2]
[351636812,1738680633376,-563.229366,0.00016438,2]
[351636814,1738680633389,-563.229366,0.00016438,2]
[351636816,1738680633398,-563.229366,0.00016438,2]
[351636818,1738680633407,-500.0,0.00016438,2]
[351636820,1738680633417,-563.229366,0.00016438,2]
[351636822,1738680633426,-563.229366,0.00016438,2]
[351636824,1738680633437,-563.229366,0.00016438,2]
[351636826,1738680633447,-563.229366,0.00016438,2]
[351636828,1738680633457,-563.229366,0.00016438,2]
[351636830,1738680633466,-563.229366,0.00016438,2]
[351636832,1738680633476,-563.229366,0.00016438,2]
[351636834,1738680633485,-563.229366,0.00016438,2]
[351636836,1738680633494,-563.229362,0.00016438,2]
[351636838,1738680633505,-504.27543403,0.00016438,2]
[351636840,1738680633524,-500.0,0.00016438,2]
[351636842,1738680633545,-500.0,0.00016438,2]
[351636844,1738680633559,-500.0,0.00016438,2]
[351636847,1738680633579,-480.67277355,0.00016438,2]
[351636849,1738680633590,-356.11560499,0.00016438,2]
[351636850,1738680633600,-500.0,0.00016438,2]
[351636852,1738680633611,-501.73770138,0.00016438,2]
[351636854,1738680633624,-151.0,0.00016438,2]
[351636857,1738680633639,-151.0,0.00016438,2]
[351636858,1738680633649,-151.0,0.00016438,2]
[351636860,1738680633661,-151.0,0.00016438,2]
[351636862,1738680633673,-378.02140972,0.00016438,2]
[351636864,1738680633685,-500.0,0.00016438,2]
[351636866,1738680633695,-612.19274852,0.00016438,2]
[351636868,1738680633708,-567.16103418,0.00016438,2]
[351636870,1738680633719,-503.92136635,0.00016438,2]
[351636872,1738680633730,-500.0,0.00016438,2]
[351636874,1738680633741,-500.0,0.00016438,2]
[351636876,1738680633751,-247.92187235,0.00016438,2]
[351636878,1738680633762,-151.0,0.00016438,2]
[351636879,1738680633772,-151.0,0.00016438,2]
[351636881,1738680633782,-151.0,0.00016438,2]
[351636883,1738680633793,-151.0,0.00016438,2]
[351636885,1738680633803,-500.0,0.00016438,2]
[351636888,1738680633813,-151.0,0.00016438,2]
[351636889,1738680633823,-151.0,0.00016438,2]
[351636891,1738680633833,-151.0,0.00016438,2]
[351636893,1738680633842,-151.0,0.00016438,2]
[351636895,1738680633852,-500.0,0.00016438,2]
[351636897,1738680633861,-500.0,0.00016438,2]
[351636899,1738680633871,-500.89196438,0.00016438,2]